bitfinex/quotes_ETHUSD_20260109
["timestamp","ask_amount","ask_price","bid_price","bid_amount"]
[1767975243911,3.50724092,3137.2,3135.2,0.96725149]
[1767975244112,0.11962354,3137.2,3136.8,0.000808]
[1767975244269,3.18704783,3137.7,3136.8,0.000808]
[1767975244469,3.18643851,3138.3,3136.8,0.000808]
[1767975244670,3.18635421,3138.4,3136.8,0.000808]
[1767975244844,0.02223,3138.5,3136.8,0.000808]
[1767975244845,6.39470281,3138.5,3136.8,0.000808]
[1767975245046,3.20846546,3138.5,3136.9,0.25]
[1767975245377,3.20853122,3138.5,3137.0,0.25]
[1767975245581,3.20853122,3138.5,3136.8,0.000808]
[1767975245582,0.00961677,3138.4,3136.8,0.000808]
[1767975246099,0.00961677,3137.9,3136.9,0.25]
[1767975246266,0.00961677,3138.4,3137.0,0.25]
[1767975246457,0.00961677,3138.1,3137.0,0.25]
[1767975246653,1.05221083,3138.3,3137.0,0.25]
[1767975246878,0.00961677,3138.2,3137.1,0.25]
[1767975247065,1.05221083,3138.3,3137.1,0.25]
[1767975247467,3.18664159,3138.1,3136.8,0.250808]
[1767975247784,0.31962584,3138.0,3136.8,0.250808]
[1767975248087,0.31962584,3138.0,3136.9,0.25]
[1767975248256,0.31962584,3138.0,3137.0,0.25]
[1767975248451,0.31962584,3138.0,3136.8,0.000808]
[1767975248666,6.37267396,3138.4,3136.9,0.25]
[1767975248967,0.00961677,3138.3,3136.8,0.000808]
[1767975249165,0.00961677,3138.3,3136.9,0.25]
[1767975249690,6.3730801,3138.2,3136.9,0.25]
[1767975249985,0.00961677,3137.9,3136.8,0.000808]
[1767975250586,0.000808,3137.2,3135.6,3.18918142]
[1767975250883,0.000808,3137.2,3135.5,0.95763472]
[1767975251563,0.000808,3137.2,3135.6,0.249]
[1767975251764,0.000808,3137.2,3135.9,0.95763472]
[1767975251964,0.000808,3137.2,3136.1,0.95763472]
[1767975252392,0.000808,3137.2,3136.2,0.249]
[1767975252554,0.000808,3137.2,3136.3,0.249]
[1767975253257,0.000808,3137.2,3135.5,0.95763472]
[1767975253488,3.19754967,3136.9,3135.6,0.249]
[1767975253660,0.00961677,3136.5,3135.1,0.00080072]
[1767975253851,0.00961677,3136.3,3135.2,0.249]
[1767975254190,0.00961677,3135.9,3134.2,3.19057319]
[1767975254387,0.00080072,3135.5,3134.5,0.95763472]
[1767975254591,0.00080072,3135.5,3134.4,2.175501]
[1767975254592,0.00080072,3135.5,3134.6,1.27094829]
[1767975254786,0.00080072,3135.5,3134.7,0.249]
[1767975254986,0.00080072,3135.5,3134.3,3.79044739]
[1767975255152,0.00080072,3135.5,3134.3,0.6]
[1767975255356,0.00080072,3135.5,3134.4,0.249]
[1767975255557,0.00080072,3135.5,3134.3,0.6]
[1767975255873,0.00961677,3135.4,3134.3,0.6]
[1767975256387,0.00080072,3135.5,3134.3,0.6]
[1767975256559,0.00961677,3135.2,3133.9,0.249]
[1767975256756,0.01041749,3135.5,3133.9,3.43982986]
[1767975256968,0.00961677,3135.3,3134.0,0.34398299]
[1767975257190,0.00961677,3135.3,3133.9,0.249]
[1767975257711,0.00961677,3135.1,3133.9,0.249]
[1767975257890,0.00961677,3135.1,3133.9,3.43988037]
[1767975258205,3.19910569,3135.3,3133.9,3.43988037]
[1767975258206,0.00961677,3135.3,3133.9,6.63079265]
[1767975258367,0.00961677,3135.3,3133.9,3.43988037]
[1767975258708,0.00961677,3135.3,3134.0,0.66308797]
[1767975259022,0.01041749,3135.5,3134.0,0.66308797]
[1767975259222,0.00961677,3136.5,3135.1,0.0008008]
[1767975259511,0.00961677,3136.7,3135.2,0.249]
[1767975259672,0.00961677,3136.7,3135.3,3.18948744]
[1767975259862,0.00961677,3136.7,3135.4,0.34384874]
[1767975260060,3.18798506,3136.8,3135.4,0.34384874]
[1767975260308,0.00961677,3136.5,3135.4,0.34384874]
[1767975260463,0.00961677,3136.7,3135.2,6.6281672]
[1767975260790,0.00961677,3136.8,3135.2,6.6281672]
[1767975261092,0.00961677,3136.8,3135.5,0.6]
[1767975261280,0.00961677,3137.4,3135.5,0.6]
[1767975261662,0.00961677,3137.0,3135.6,3.18918229]
[1767975261989,3.19799488,3137.2,3135.7,0.37891823]
[1767975261990,0.000808,3137.2,3135.7,0.37891823]
[1767975262392,0.000808,3137.2,3135.7,1.33655295]
[1767975262961,0.000808,3137.2,3135.8,0.249]
[1767975263190,0.000808,3137.2,3135.8,1.20663472]
[1767975263692,0.000808,3137.2,3135.9,3.43787719]
[1767975263885,0.000808,3137.2,3136.0,0.43955119]
[1767975264977,0.000808,3137.2,3136.1,0.249]
[1767975265463,0.000808,3137.2,3136.0,0.43955119]
[1767975265664,0.00961677,3137.1,3135.5,0.6]
[1767975265864,0.00961677,3136.9,3135.6,0.249]
[1767975266489,0.00961677,3136.9,3135.5,3.18927457]
[1767975266696,0.00961677,3136.9,3135.6,0.249]
[1767975266898,0.00961677,3136.7,3135.1,3.19046142]
[1767975267199,0.00961677,3136.4,3135.2,0.31904614]
[1767975267503,0.94097467,3136.9,3135.5,0.001]
[1767975267802,0.002,3136.9,3135.5,0.001]
[1767975268000,6.37773045,3136.9,3135.5,0.001]
[1767975268162,0.94097467,3136.8,3135.5,0.001]
[1767975268362,0.73187051,3136.7,3135.5,0.001]
[1767975269602,6.37633104,3136.6,3135.5,0.001]
[1767975269806,3.18816552,3136.6,3135.5,0.001]
[1767975270396,3.91996591,3136.7,3135.5,0.001]
[1767975270596,3.91998033,3136.7,3135.5,0.001]
[1767975271204,3.91995799,3136.7,3135.5,0.34494839]
[1767975271712,3.91995799,3136.7,3135.5,0.001]
[1767975272065,0.73187051,3136.7,3135.5,0.001]
[1767975272275,4.11934541,3136.8,3135.5,0.001]
[1767975272703,7.30733292,3136.8,3135.5,0.001]
[1767975272913,0.97933724,3136.7,3135.5,0.001]
[1767975273287,9.56396253,3136.8,3135.1,0.2498008]
[1767975273288,0.39680029,3140.3,3139.3,0.93172081]
[1767975273601,0.00961677,3140.5,3139.6,0.16634148]
[1767975273930,0.00961677,3139.7,3139.6,0.16634148]
[1767975274074,0.00961677,3139.9,3138.8,0.25952256]
[1767975274408,0.00961677,3139.9,3138.1,3.18661791]
[1767975274409,0.00961677,3139.8,3138.5,0.63541241]
[1767975274571,0.00961677,3139.5,3138.6,0.249]
[1767975274770,0.00961677,3139.6,3138.6,0.249]
[1767975274987,0.00961677,3139.5,3138.5,0.70082894]
[1767975275177,0.00961677,3139.4,3138.5,0.70082894]
[1767975275396,0.00961677,3139.3,3138.3,6.37287702]
[1767975275599,0.00961677,3139.3,3138.3,3.18643851]
[1767975275600,0.28910386,3138.8,3138.3,3.18643851]
[1767975275798,0.00961677,3139.1,3138.3,3.18643851]
[1767975275997,0.00961677,3138.7,3138.2,0.16708208]
[1767975276306,0.00961677,3139.4,3136.8,6.94311452]
[1767975276307,0.01274514,3138.4,3136.8,6.94311452]
[1767975276482,0.01274514,3138.2,3136.9,0.94331145]
[1767975276683,0.01274514,3138.1,3137.0,9.563277]
[1767975276908,0.01274514,3138.1,3137.1,1.05065884]
[1767975277111,3.375,3140.0,3137.1,1.05065884]
[1767975277112,0.01274514,3139.0,3138.2,0.0008004]
[1767975277405,0.01274514,3139.2,3138.2,0.0008004]
[1767975277605,0.01274514,3139.0,3138.2,0.0008004]
[1767975278814,0.01274514,3139.2,3138.2,0.0008004]
[1767975279009,0.01274514,3139.4,3138.2,7.58051448]
[1767975279189,0.01274514,3139.8,3138.2,7.58051448]
[1767975279506,0.01274514,3139.5,3138.3,0.249]
[1767975279713,0.01274514,3139.5,3138.6,0.001]
[1767975279912,0.01274514,3139.1,3138.6,0.001]
[1767975280500,0.01274514,3139.4,3138.6,0.001]
[1767975280699,0.01274514,3139.5,3138.6,0.001]
[1767975280891,0.01274514,3139.7,3138.6,0.001]
[1767975281091,0.01274514,3139.6,3138.6,0.6383674]
[1767975281494,0.01274514,3139.4,3138.6,0.6383674]
[1767975281694,0.01274514,3139.3,3138.6,0.6383674]
[1767975281903,0.01274514,3139.3,3138.6,3.82440536]
[1767975282300,0.01274514,3139.6,3138.6,7.0105393]
[1767975282501,0.01274514,3139.4,3138.7,0.70105393]
[1767975282904,0.01274514,3139.4,3138.6,6.3731719]
[1767975283101,0.01274514,3139.4,3138.6,3.18703796]
[1767975284016,0.01274514,3139.2,3138.6,0.001]
[1767975284213,0.01274514,3139.4,3138.6,0.001]
[1767975284824,0.01274514,3139.0,3138.6,0.001]
[1767975287025,0.01274514,3138.8,3138.2,0.0008004]
[1767975287187,0.01274514,3138.5,3138.2,0.0008004]
[1767975287387,0.01274514,3139.4,3138.2,0.0008004]
[1767975287388,0.01274514,3139.5,3138.5,0.93172081]
[1767975287595,7.51590948,3141.1,3138.5,0.75533948]
[1767975287596,0.96972047,3140.7,3138.5,0.75533948]
[1767975288004,0.01274514,3139.6,3138.6,6.37226788]
[1767975288319,3.19687556,3140.6,3138.6,6.37226788]
[1767975288521,3.19687556,3140.6,3138.6,7.08502862]
[1767975288522,0.01274514,3140.6,3138.6,7.08502862]
[1767975288688,0.01274514,3140.6,3138.9,7.60395932]
[1767975288884,0.01274514,3140.4,3139.0,0.249]
[1767975289130,0.01274514,3140.9,3139.0,1.20521447]
[1767975289336,0.01274514,3141.0,3139.5,7.60395932]
[1767975289490,0.01274514,3140.8,3139.1,0.95621447]
[1767975289826,0.01274514,3140.6,3139.1,1.20521447]
[1767975289996,0.01274514,3140.6,3139.2,6.37104994]
[1767975290201,0.01274514,3140.8,3139.2,6.37104994]
[1767975290403,0.01274514,3140.7,3139.2,6.37104994]
[1767975290719,0.01274514,3140.7,3139.3,1.0761808]
[1767975290922,0.01274514,3140.5,3139.2,4.39073944]
[1767975291086,0.01274514,3140.5,3139.2,7.32726441]
[1767975291292,0.01274514,3140.9,3139.2,7.57626441]
[1767975291487,0.01274514,3141.2,3139.3,0.95621447]
[1767975291488,3.19626119,3141.2,3139.3,0.95621447]
[1767975291689,0.0008024,3142.2,3141.4,0.00080032]
[1767975291995,0.01274514,3142.6,3141.8,0.0008032]
[1767975292194,0.01274514,3142.8,3141.8,0.0008032]
[1767975292391,0.01274514,3143.4,3141.8,0.0008032]
[1767975292611,0.01274514,3143.2,3141.8,0.0008032]
[1767975292820,0.01274514,3143.3,3141.8,0.0008032]
[1767975292999,0.01274514,3142.7,3141.8,0.0008032]
[1767975293200,0.01274514,3142.3,3141.8,0.0008032]
[1767975293424,0.01274514,3142.4,3141.8,0.0008032]
[1767975293807,0.01274514,3142.2,3141.8,0.0008032]
[1767975294004,0.01274514,3142.2,3141.4,0.00080032]
[1767975294005,6.36557496,3141.9,3141.4,0.00080032]
[1767975294202,0.01274514,3141.6,3140.2,0.95621447]
[1767975294451,0.65137747,3141.8,3140.2,0.95621447]
[1767975294653,0.01274514,3141.6,3140.2,0.95621447]
[1767975294854,0.65137747,3141.8,3140.2,0.95621447]
[1767975295031,0.0008032,3142.2,3140.8,0.95621447]
[1767975295236,0.0008032,3142.2,3141.4,0.0008004]
[1767975295635,0.01274514,3142.1,3141.4,0.0008004]
[1767975295959,3.18328681,3142.2,3141.4,0.0008004]
[1767975296144,3.18268618,3142.0,3141.4,0.0008004]
[1767975296528,0.31960319,3142.1,3141.4,0.0008004]
[1767975296729,0.0008032,3142.2,3141.4,0.0008004]
[1767975297424,3.18147111,3143.2,3141.8,0.000804]
[1767975297947,6.36294222,3143.2,3141.8,0.000804]
[1767975298259,3.19414051,3143.3,3141.8,0.000804]
[1767975298554,0.01274514,3142.9,3141.8,0.000804]
[1767975298723,0.01274514,3142.5,3141.8,0.000804]
[1767975298922,0.01274514,3142.7,3141.8,0.000804]
[1767975299152,0.01274514,3142.5,3141.8,0.000804]
[1767975299449,0.01274514,3142.8,3141.8,0.000804]
[1767975300063,3.19332667,3144.1,3141.8,0.000804]
[1767975300266,0.01274514,3143.1,3141.8,0.000804]
[1767975300483,0.01274514,3143.5,3141.8,0.95701847]
[1767975300753,6.6814963,3143.6,3141.8,0.249804]
[1767975300930,0.01274514,3142.8,3141.8,0.000804]
[1767975301131,0.01274514,3142.6,3141.8,0.000804]
[1767975301342,0.01274514,3142.4,3141.8,0.000804]
[1767975301540,0.01274514,3142.3,3141.8,0.000804]
[1767975301718,0.01274514,3143.0,3141.8,0.000804]
[1767975301719,0.01274514,3143.1,3141.8,0.000804]
[1767975301925,0.01274514,3143.0,3141.8,0.000804]
[1767975302129,0.00182586,3144.3,3142.0,0.95621447]
[1767975302448,0.00182586,3144.3,3142.9,0.95621447]
[1767975302789,0.01274514,3144.2,3142.9,1.20521447]
[1767975302926,1.27123566,3144.6,3143.2,7.87486876]
[1767975303239,0.01274514,3144.8,3142.9,2.703928]
[1767975303559,0.01274514,3144.8,3142.1,0.16]
[1767975303560,0.01274514,3144.4,3143.0,0.35524905]
[1767975303775,0.01274514,3144.0,3142.5,6.91604399]
[1767975303975,0.002,3142.7,3142.5,6.91604399]
[1767975304129,0.002,3143.0,3142.5,10.09816792]
[1767975304329,0.01274514,3144.1,3142.6,1.3529443]
[1767975304533,0.01274514,3143.5,3142.3,3.18232004]
[1767975304731,0.01274514,3143.5,3141.4,0.0008004]
[1767975304732,0.01274514,3143.1,3141.4,0.0008004]
[1767975304974,1.00631297,3143.7,3141.4,0.0008004]
[1767975304975,0.01274514,3143.4,3141.6,6.91604399]
[1767975305286,0.01274514,3143.4,3141.4,0.0008004]
[1767975305287,0.01274514,3142.8,3141.4,0.0008004]
[1767975305444,0.01274514,3142.4,3141.4,0.0008004]
[1767975305628,0.01274514,3142.3,3141.4,0.0008004]
[1767975305826,0.0008004,3141.8,3141.6,3.18308681]
[1767975306024,0.01274514,3142.8,3141.4,3.18327717]
[1767975306025,4.17554511,3142.7,3141.8,0.0008048]
[1767975306363,0.01274514,3142.4,3141.8,0.0008048]
[1767975306679,0.01274514,3142.8,3141.8,0.0008048]
[1767975306680,0.01274514,3143.1,3141.8,0.0008048]
[1767975306834,0.25874514,3143.5,3141.8,0.2498048]
[1767975307026,0.01274514,3143.3,3141.8,0.2498048]
[1767975307344,0.01274514,3143.1,3141.8,0.2498048]
[1767975307543,0.01274514,3142.9,3141.8,0.0008048]
[1767975307748,0.01274514,3142.8,3141.8,0.0008048]
[1767975308070,3.19468235,3142.8,3141.8,0.0008048]
[1767975308274,0.01274514,3142.6,3141.8,0.0008048]
[1767975308431,0.01274514,3142.5,3141.8,0.0008048]
[1767975308632,0.0008048,3142.2,3141.4,0.00080048]
[1767975309328,0.01274514,3141.5,3141.4,0.00080048]
[1767975310280,0.01274514,3141.5,3140.0,0.249]
[1767975310281,0.01274514,3141.7,3140.0,3.18469789]
[1767975310498,0.01274514,3141.6,3140.1,0.31846979]
[1767975310640,0.00080048,3141.8,3140.2,7.16504399]
[1767975311066,3.18369177,3141.8,3140.2,7.16504399]
[1767975311279,0.00080048,3141.8,3140.2,7.16504399]
[1767975311475,0.00080048,3141.8,3140.9,6.91604399]
[1767975311782,0.01274514,3143.1,3141.4,0.00080056]
[1767975311783,0.99356783,3143.0,3141.4,0.00080056]
[1767975311996,0.246,3143.2,3141.8,0.0008056]
[1767975312159,0.01274514,3143.0,3141.8,0.0008056]
[1767975312346,1.00631297,3142.8,3141.8,0.0008056]
[1767975313051,0.01274514,3142.6,3141.8,0.0008056]
[1767975314210,0.01274514,3142.4,3141.8,0.0008056]
[1767975314509,0.00080056,3141.8,3141.0,0.6916044]
[1767975314698,0.00080056,3141.8,3140.7,3.18397771]
[1767975315073,0.00080056,3141.8,3140.9,3.18375985]
[1767975315297,0.00080056,3141.8,3140.7,3.18392875]
[1767975315505,0.00080056,3141.8,3140.8,3.18389454]
[1767975315702,0.00080056,3141.8,3141.1,3.18358952]
[1767975316014,0.00080056,3141.8,3141.1,6.36718762]
[1767975316312,0.00080056,3141.8,3140.9,3.18377693]
[1767975317223,0.00080056,3141.8,3140.8,3.50228538]
[1767975317575,0.00080056,3141.8,3140.8,6.68618757]
[1767975317795,0.00080056,3141.8,3140.9,0.66861876]
[1767975318002,0.00080056,3141.8,3140.8,3.18390219]
[1767975318373,0.00080056,3141.8,3140.7,3.18400356]
[1767975318577,0.00080056,3141.8,3140.6,6.36818191]
[1767975318775,0.99436839,3141.8,3140.7,0.63681819]
[1767975319099,0.99356783,3141.7,3140.1,0.01274514]
[1767975319298,0.99356783,3141.7,3139.9,6.91604399]
[1767975319609,0.99356783,3141.7,3140.0,3.87631199]
[1767975319812,0.99356783,3141.7,3140.0,3.18470759]
[1767975320025,0.24680056,3141.8,3140.9,0.01274514]
[1767975320026,0.00080056,3141.8,3140.9,0.01274514]
[1767975320513,0.00080056,3141.8,3140.8,3.18384398]
[1767975320808,0.00080056,3141.8,3140.7,0.26174514]
[1767975321015,0.00080056,3141.8,3140.8,3.18389366]
[1767975321199,0.00080056,3141.8,3141.0,0.01274514]
[1767975321402,0.00080056,3141.8,3141.2,0.01274514]
[1767975321605,1.00631297,3143.7,3141.8,0.0008064]
[1767975321909,1.23956783,3143.2,3141.8,0.0008064]
[1767975322312,0.99356783,3143.0,3141.8,0.0008064]
[1767975322613,0.0008064,3142.2,3141.4,0.00080064]
[1767975324204,0.0008064,3142.2,3139.6,0.001]
[1767975324205,0.00080064,3141.8,3139.8,0.249]
[1767975324514,0.00080064,3141.8,3139.9,3.18480712]
[1767975324713,0.00080064,3141.8,3139.8,3.43389676]
[1767975325408,0.00080064,3141.8,3139.8,6.618829]
[1767975325409,0.246,3141.7,3139.8,6.618829]
[1767975325586,0.246,3141.7,3139.9,0.6618829]
[1767975325919,0.00080064,3141.8,3139.9,0.6618829]
[1767975326086,0.246,3141.7,3139.8,0.249]
[1767975326283,0.246,3141.7,3139.6,0.001]
[1767975326284,0.01274514,3141.4,3139.6,0.001]
[1767975326613,6.3667908,3141.3,3139.6,0.95982477]
[1767975326820,3.18329055,3141.5,3139.6,0.95982477]
[1767975326985,6.3665811,3141.5,3139.6,0.95982477]
[1767975327187,0.63665811,3141.4,3139.7,0.41450093]
[1767975327982,0.246,3141.3,3139.7,0.41450093]
[1767975328416,0.246,3141.3,3140.2,0.001]
[1767975328720,6.3669935,3141.2,3140.2,0.001]
[1767975329014,3.18349675,3141.2,3140.2,0.001]
[1767975329215,6.3669935,3141.2,3140.2,0.001]
[1767975329416,3.18349675,3141.2,3140.2,0.001]
[1767975329622,6.3669935,3141.2,3140.2,0.001]
[1767975329988,0.99356783,3141.1,3139.6,0.001]
[1767975330188,0.99356783,3140.9,3139.6,0.001]
[1767975330725,0.73605613,3141.0,3139.6,0.001]
[1767975330726,10.5452744,3140.8,3139.6,0.001]
[1767975331198,7.36137221,3140.8,3139.6,0.001]
[1767975331409,0.99356783,3140.8,3139.6,0.001]
[1767975331726,0.63665811,3141.4,3139.6,0.001]
[1767975331727,0.99356783,3141.4,3139.6,0.001]
[1767975331888,0.246,3141.3,3139.6,0.001]
[1767975332086,1.90083537,3141.3,3139.7,0.8193773]
[1767975332325,0.99356783,3141.2,3139.6,0.001]
[1767975332835,7.34512388,3141.1,3139.6,0.001]
[1767975333038,0.97792768,3141.0,3139.6,0.001]
[1767975333326,6.3671962,3141.1,3139.6,0.001]
[1767975333495,0.01274514,3140.5,3139.6,0.001]
[1767975333691,0.25874514,3140.7,3139.6,0.001]
[1767975334027,0.25874514,3140.7,3139.6,0.31962972]
[1767975334229,0.246,3140.7,3139.6,0.001]
[1767975334930,0.01274514,3140.4,3139.6,0.001]
[1767975335243,3.18410494,3140.6,3139.6,0.001]
[1767975335392,0.01274514,3140.5,3139.6,0.001]
[1767975335599,0.6380955,3140.4,3139.6,0.001]
[1767975335804,0.01274514,3140.3,3139.6,0.001]
[1767975336000,0.6380955,3140.4,3139.6,0.001]
[1767975336205,0.01274514,3140.3,3139.6,0.001]
[1767975336720,6.36902108,3140.2,3138.6,0.001]
[1767975336921,6.36902108,3140.2,3138.6,3.18713394]
[1767975336922,0.88417662,3140.1,3138.6,3.18713394]
[1767975337125,0.89692176,3140.1,3138.6,3.18713394]
[1767975337535,0.01274514,3139.5,3137.5,0.98080435]
[1767975337703,0.01274514,3139.3,3137.5,0.98080435]
[1767975337908,0.01274514,3139.1,3137.5,0.98080435]
[1767975338125,0.01274514,3139.1,3137.7,3.18697776]
[1767975338404,0.01274514,3139.3,3137.5,0.98080435]
[1767975338604,0.01274514,3139.1,3137.7,0.42188481]
[1767975338817,6.3713756,3139.1,3136.8,0.98161315]
[1767975339001,0.0008004,3138.6,3137.5,3.18725099]
[1767975339606,0.0008004,3138.6,3137.4,3.18731429]
[1767975339806,0.0008004,3138.6,3136.9,0.01274514]
[1767975339807,0.0008004,3138.6,3137.0,3.18773319]
[1767975340008,0.0008004,3138.6,3137.0,4.055978]
[1767975340323,0.0008004,3138.6,3137.5,6.37443415]
[1767975340740,0.0008004,3138.6,3137.1,1.4004218]
[1767975341053,0.0008004,3138.6,3137.2,14.5]
[1767975341218,0.0008004,3138.6,3137.1,0.40687231]
[1767975341406,0.0008004,3138.6,3137.1,3.18764727]
[1767975341833,0.0008004,3138.6,3136.6,0.98080435]
[1767975342052,0.0008004,3138.6,3136.5,0.249]
[1767975342053,0.97872808,3138.6,3136.5,0.249]
[1767975342359,0.99067282,3138.3,3136.5,0.249]
[1767975342522,0.01274514,3137.6,3135.2,0.98080435]
[1767975342725,3.433337,3137.5,3135.2,0.98080435]
[1767975343069,0.99067282,3138.3,3135.6,7.94377301]
[1767975343272,1.22392768,3138.2,3136.0,0.98080435]
[1767975343443,0.97792768,3138.0,3136.0,0.98080435]
[1767975343758,0.01274514,3137.8,3135.5,0.98080435]
[1767975344119,0.01274514,3137.6,3135.6,14.5]
[1767975344329,0.01274514,3137.4,3135.6,14.5]
[1767975344563,0.246,3137.3,3135.6,14.5]
[1767975344917,3.43347366,3137.3,3135.7,6.37816116]
[1767975345241,0.246,3137.3,3135.7,6.37816116]
[1767975345426,6.62096576,3137.3,3135.7,3.18908058]
[1767975345630,0.01355394,3137.2,3135.2,0.249]
[1767975345836,0.01274514,3136.8,3135.2,3.18958524]
[1767975346149,0.01274514,3136.2,3135.1,0.0008008]
[1767975346318,0.246,3136.1,3135.1,0.0008008]
[1767975346684,0.246,3136.5,3135.1,0.0008008]
[1767975347029,0.01274514,3136.2,3135.1,0.0008008]
[1767975347192,0.01274514,3136.0,3135.1,0.0008008]
[1767975347332,0.01274514,3135.7,3135.1,0.0008008]
[1767975347537,0.246,3136.0,3135.1,0.0008008]
[1767975347735,0.246,3136.2,3135.1,0.63885976]
[1767975347967,0.01274514,3136.1,3135.1,0.63885976]
[1767975348981,0.01274514,3136.1,3135.1,3.82850467]
[1767975349139,0.01274514,3135.8,3135.1,3.82850467]
[1767975349344,0.25874514,3136.1,3135.2,0.38285047]
[1767975349671,0.01274514,3136.7,3135.2,0.38285047]
[1767975349876,0.246,3136.6,3135.2,0.38285047]
[1767975350274,0.01274514,3137.1,3135.2,0.38285047]
[1767975350476,0.01274514,3136.1,3135.2,0.38285047]
[1767975350666,0.01274514,3136.4,3135.2,0.38285047]
[1767975350667,0.01274514,3136.2,3135.3,0.67629871]
[1767975350880,0.01274514,3136.0,3135.3,3.86571456]
[1767975351094,0.01274514,3135.9,3135.3,0.67629871]
[1767975351386,0.01274514,3135.9,3135.1,0.0008008]
[1767975351387,0.01274514,3135.7,3135.1,0.0008008]
[1767975351592,0.01274514,3135.5,3135.1,0.0008008]
[1767975351893,0.01074515,3135.5,3135.1,0.0008008]
[1767975352187,0.246,3136.0,3135.6,0.001]
[1767975352376,0.01274514,3135.9,3135.6,0.001]
[1767975353067,0.01274514,3135.7,3135.6,0.001]
[1767975353272,0.01274514,3135.9,3135.6,0.001]
[1767975353465,0.01274514,3135.7,3135.6,0.001]
[1767975353776,0.01274514,3136.2,3135.6,0.001]
[1767975354095,0.01274514,3136.1,3135.6,0.001]
[1767975354400,0.01274514,3135.9,3135.6,0.001]
[1767975354768,0.01274514,3135.7,3135.6,0.001]
[1767975355297,3.18897888,3135.8,3135.1,0.0008008]
[1767975355598,0.01274514,3135.2,3135.1,0.0008008]
[1767975355759,0.01274514,3135.9,3135.1,0.0008008]
[1767975355960,0.01274514,3135.7,3135.1,0.0008008]
[1767975356194,0.01274514,3135.5,3135.1,0.0008008]
[1767975356562,0.01274514,3135.3,3135.1,0.0008008]
[1767975357166,0.01274514,3135.5,3135.1,0.0008008]
[1767975357491,0.01274514,3135.3,3135.1,0.0008008]
[1767975357958,0.01274514,3135.5,3135.1,0.0008008]
[1767975358159,0.01274514,3135.3,3135.1,0.0008008]
[1767975358791,0.01274514,3135.5,3135.1,0.0008008]
[1767975358994,0.01274514,3135.3,3135.1,0.0008008]
[1767975359159,0.01274514,3135.5,3135.1,0.0008008]
[1767975359679,0.25874514,3135.7,3135.1,0.0008008]
[1767975359994,0.01274514,3135.7,3135.1,0.0008008]
[1767975360364,0.01274514,3135.5,3135.1,0.0008008]
[1767975360588,0.01274514,3136.1,3135.1,0.0008008]
[1767975360788,0.01274514,3136.0,3135.1,0.0008008]
[1767975360960,0.01274514,3136.2,3135.1,0.0008008]
[1767975361292,0.01274514,3135.9,3135.1,0.0008008]
[1767975361463,0.01274514,3136.1,3135.1,0.0008008]
[1767975361659,0.01274514,3136.4,3135.1,0.0008008]
[1767975361862,0.0008088,3137.2,3135.1,0.0008008]
[1767975361863,0.01274514,3136.7,3135.2,0.94954435]
[1767975362065,0.01274514,3136.7,3135.3,0.94954435]
[1767975362066,0.01274514,3136.5,3135.3,0.94954435]
[1767975362295,0.95685141,3137.5,3135.3,0.94954435]
[1767975362462,3.1996588,3137.9,3135.2,0.249]
[1767975362463,0.01274514,3137.1,3135.5,0.94954435]
[1767975362791,0.01274514,3137.1,3135.7,0.94954435]
[1767975363172,0.01274514,3136.9,3135.8,6.37795776]
[1767975363579,0.01274514,3137.8,3136.3,7.94377301]
[1767975363811,0.01274514,3137.8,3136.8,0.0008096]
[1767975364015,0.01274514,3137.4,3136.8,0.0008096]
[1767975364501,0.01274514,3137.6,3136.8,0.0008096]
[1767975364706,0.002,3137.8,3136.8,8.87847568]
[1767975365001,0.002,3137.8,3136.9,0.93389307]
[1767975365161,0.002,3137.8,3137.0,4.07553419]
[1767975365600,0.01274514,3137.7,3136.8,3.18875793]
[1767975365806,0.01274514,3137.7,3136.8,0.0008096]
[1767975365992,0.01274514,3137.5,3136.8,0.0008096]
[1767975366201,0.01274514,3137.7,3136.8,0.0008096]
[1767975366517,0.002,3137.8,3136.8,0.0008096]
[1767975366704,0.01274514,3137.5,3136.8,0.0008096]
[1767975366903,0.002,3137.8,3136.8,0.0008096]
[1767975367219,0.01274514,3137.4,3136.8,0.0008096]
[1767975367399,0.01474514,3137.8,3136.8,0.0008096]
[1767975367914,0.002,3137.8,3136.8,0.0008096]
[1767975368519,0.01274514,3137.5,3136.8,0.0008096]
[1767975368724,0.4,3137.5,3136.8,0.0008096]
[1767975370082,0.01274514,3137.7,3136.8,0.0008096]
[1767975370287,0.01274514,3137.6,3136.8,0.0008096]
[1767975370818,0.01474514,3137.8,3136.8,0.0008096]
[1767975371115,0.01274514,3137.6,3136.8,0.0008096]
[1767975371918,0.002,3137.8,3136.8,0.0008096]
[1767975372135,0.01274514,3137.9,3136.8,0.0008096]
[1767975372344,0.01274514,3137.5,3136.8,0.0008096]
[1767975372637,0.01274514,3136.9,3135.6,1.54495444]
[1767975372842,0.01274514,3136.6,3135.5,3.18926875]
[1767975373126,0.01274514,3136.7,3135.8,3.1889591]
[1767975373418,0.01274514,3136.6,3135.5,6.378568]
[1767975373595,0.01274514,3136.6,3135.6,0.98168914]
[1767975374191,0.01274514,3136.5,3135.1,1.18369387]
[1767975374385,0.01274514,3136.4,3135.4,3.18934667]
[1767975374592,0.01274514,3136.7,3135.4,6.37875851]
[1767975374891,0.01274514,3136.1,3135.1,0.0008008]
[1767975375087,0.01274514,3136.3,3135.1,0.0008008]
[1767975375291,0.01274514,3136.1,3135.1,0.0008008]
[1767975375523,0.01274514,3136.3,3135.1,0.0008008]
[1767975375686,0.01274514,3136.7,3135.2,0.93389307]
[1767975375895,0.01274514,3136.5,3135.2,0.93389307]
[1767975376223,0.01274514,3136.2,3135.2,0.93389307]
[1767975376391,0.01274514,3136.2,3135.7,0.001]
[1767975376589,0.01274514,3136.3,3135.7,0.001]
[1767975376930,0.01274514,3136.7,3135.7,0.001]
[1767975378111,0.01274514,3136.6,3135.7,0.001]
[1767975378418,0.01274514,3136.8,3135.7,0.001]
[1767975378593,0.01274514,3136.6,3135.7,0.001]
[1767975378794,0.01274514,3136.8,3135.7,0.001]
[1767975379029,0.01274514,3137.0,3135.7,0.93489307]
[1767975379328,0.01355474,3137.2,3135.9,0.93389307]
[1767975379529,0.0008096,3137.2,3136.0,3.18877551]
[1767975380026,0.01274514,3137.1,3136.1,0.249]
[1767975380327,0.0008096,3137.2,3136.1,0.249]
[1767975380628,0.01274514,3137.1,3136.1,0.249]
[1767975380845,0.01274514,3136.9,3136.1,0.34378441]
[1767975381007,0.01274514,3136.9,3136.1,0.59278441]
[1767975381600,0.0008096,3137.2,3136.2,3.18857215]